Cogmind - Beta 17.1 @@@ ROGUE MODE // 2026.09.11 @ 06:14:36 Player: 4R-ZE3 Result: Destroyed by G-47 Trooper with Particle Gun Performance ------------- Evolutions (3) 1500 Regions Visited (5) 1000 Robots Destroyed (112) 560 Value Destroyed (3730) 3730 Prototype IDs (9) 180 Alien Tech Used (0) 0 Bonus (387) 387 TOTAL SCORE: 7357 Bonus ------- High Alert Combat Kills 352 Follower Combat Kills 78 Friendly Fire -43 Cogmind --------- Core Integrity 0/700 Matter 261/300 Energy 68/100 System Corruption 1% Temperature Warm (128) Movement Core (1500) Ox29 Location -7/Storage Parts ------- > --- POWER (1) -------- (None) > --- PROPULSION (4) --- (None) > --- UTILITY (5) ------ Huge Storage Unit Improved Signal Interpreter > --- WEAPON (3) ------- Improved Heavy Laser Minigun > --- INVENTORY (25) --- Improved Deuterium Engine Improved Deuterium Engine Improved Heat Sink Advanced Visual Processing Unit Improved Sensor Array Shock Rifle Heavy EM Shotgun Precision Shock Rifle Heavy Particle Gun Advanced Beam Rifle Advanced Beam Rifle Advanced Beam Rifle Advanced Beam Rifle Advanced Beam Rifle Heavy Laser Gatling Laser Gatling Laser Shotgun Minigun Minigun Minigun Enhanced Autogun Flak Gun Plasma Cutter Peak State ------------ > --- POWER ------------ Deuterium Engine > --- PROPULSION ------- Medium Treads Wheel Wheel > --- UTILITY ---------- Improved Heat Sink Improved Heat Sink Huge Storage Unit Improved Signal Interpreter Hardened Medium Armor Plating > --- WEAPON ----------- Advanced Beam Rifle Advanced Beam Rifle Improved Heavy Laser > --- INVENTORY -------- Improved Deuterium Engine Improved Deuterium Engine Improved Heat Sink Structural Scanner Advanced Visual Processing Unit Improved Sensor Array Improved Light Armor Plating Shock Rifle Heavy EM Shotgun Precision Shock Rifle Heavy Particle Gun Advanced Beam Rifle Advanced Beam Rifle Advanced Beam Rifle Heavy Laser Gatling Laser Gatling Laser Shotgun Minigun Minigun Minigun Minigun Enhanced Autogun Flak Gun Plasma Cutter [Rating: 44] Favorites ----------- Power Deuterium Engine Engine Deuterium Engine Propulsion Light Treads Treads Light Treads Wheel Wheel Utility Improved Heat Sink Device Improved Heat Sink Storage Huge Storage Unit Processor Improved Signal Interpreter Hackware System Shield Protection Hardened Medium Armor Plating Weapon Advanced Beam Rifle Energy Gun Advanced Beam Rifle Energy Cannon Advanced Beam Cannon Ballistic Gun Light Assault Rifle Ballistic Cannon Mini Assault Cannon Launcher Grenade Launcher Build | -11 -10 -10 -8 -7 -7 ------- Run | Yrd Mat Sub Mat Fac Sto Slots Evolved 6 | . . . 4 2 . Power . | . . . . . . Propulsion 2 | . . . 2 . . Utility 3 | . . . 2 1 . Weapon 1 | . . . . 1 . Parts Attached 82 | 7 6 . 31 4 34 Power 6 | 1 1 . 2 . 2 Engine 6 | 1 1 . 2 . 2 Core . | . . . . . . Reactor . | . . . . . . Propulsion 25 | 2 . . 13 . 10 Treads 20 | 2 . . 13 . 5 Leg . | . . . . . . Wheel 5 | . . . . . 5 Hover . | . . . . . . Flight . | . . . . . . Utility 26 | 1 3 . 10 2 10 Device 10 | . . . 4 1 5 Storage 6 | 1 3 . 2 . . Processor 2 | . . . 1 1 . Hackware 1 | . . . 1 . . Protection 7 | . . . 2 . 5 Artifact . | . . . . . . Weapon 25 | 3 2 . 6 2 12 Energy Gun 16 | 1 1 . 5 1 8 Energy Cannon 1 | . . . . . 1 Ballistic Gun 6 | 2 . . 1 . 3 Ballistic Cannon 1 | . . . . 1 . Launcher 1 | . 1 . . . . Special Weapon . | . . . . . . Impact Weapon . | . . . . . . Slashing Weapon . | . . . . . . Piercing Weapon . | . . . . . . Special Melee Weapon . | . . . . . . Unidentified Prototypes 9 | . . . 4 1 4 Parts Lost 39 | . 2 . 6 . 31 Power 5 | . 1 . 1 . 3 Propulsion 18 | . . . 4 . 14 Utility 11 | . . . . . 11 Weapon 5 | . 1 . 1 . 3 Highest Loss Streak 8 | . 1 . 3 . 8 To Critical Strikes . | . . . . . . Average Backups 19 | . 7 14 21 24 23 Power 1 | . . . 2 1 1 Propulsion 2 | . 3 5 3 5 1 Utility 5 | . 2 7 6 6 5 Weapon 9 | . 1 2 9 11 14 Tool/Special . | . . . . . . Unused Backups 25 | . . . 4 2 19 Power 1 | . . . . . 1 Propulsion . | . . . . . . Utility 9 | . . . 3 1 5 Weapon 14 | . . . 1 1 12 Tool/Special 1 | . . . . . 1 Average Slot Usage (%) 93 | . 87 85 98 99 91 Engine 9 | . 13 14 9 7 6 Treads 27 | . 28 28 35 30 19 Wheel 1 | . . . . . 4 Device 8 | . . . 9 11 13 Storage 10 | . 17 14 9 7 7 Processor 4 | . . . 4 3 7 Hackware 2 | . . . 4 7 . Protection 5 | . . . 7 7 6 Energy Gun 17 | . 16 14 16 22 19 Ballistic Gun 4 | . 11 14 1 . 3 Peak Build Rating 44 | 6 7 7 33 41 44 Average Rating 25 | 4 6 7 25 39 39 On Entrance 15 | . 6 7 7 33 40 Avg Prop Armor Cover (%) 10 | . . . . . 10 Naked Turns . | . . . . . . Heaviest Build 108 | 13 29 28 104 105 108 Greatest Support 88 | 40 40 40 80 80 88 Greatest Overweight (x) 10 | 2 . . 1 1 10 Average Overweight (x) 1 | . . . . 1 2 Largest Inventory Capacity 25 | 8 15 15 25 25 25 Average Capacity 21 | 7 13 15 24 25 25 Most Carried 25 | 2 14 14 25 25 25 Average Carried 19 | . 8 14 22 24 23 Final Capacity 25 | 8 15 15 25 25 25 Final Carried 25 | 2 14 14 25 25 24 Class Distribution -------------------- 50% | Mutant 28% | Scavenger-Tank 13% | Scavenger-Mutant 3% | Skirmisher Dominant Class ---------------- Mutant | -10/Materials Mutant | -10/Subcaves Mutant | -8/Materials Scavenger-Tank | -7/Factory Scavenger-Tank | -7/Storage Resources | -11 -10 -10 -8 -7 -7 ----------- Run | Yrd Mat Sub Mat Fac Sto Matter Collected 1554 | 144 246 . 353 . 811 Remotely . | . . . . . . Salvage Created 4571 | . 593 . 1474 . 2504 Parts 215 | . 47 . 81 . 87 Haulers Intercepted 3 | . 2 . 1 . . Recyclers Shooed 1 | . 1 . . . . Parts Field Recycled . | . . . . . . Retrieved Matter . | . . . . . . Parts Self-Destructed . | . . . . . . Prevented . | . . . . . . Parts Restored . | . . . . . . Kills | -11 -10 -10 -8 -7 -7 ------- Run | Yrd Mat Sub Mat Fac Sto Combat Hostiles Destroyed 90 | . 15 . 31 . 44 Guns 76 | . 14 . 27 . 35 AOE 10 | . 1 . 3 . 6 Classes Destroyed 14 | . 4 . 5 . 5 Worker 3 | . . . 1 . 2 Builder 4 | . 1 . 2 . 1 Tunneler 3 | . . . 3 . . Hauler 3 | . 2 . 1 . . Recycler 7 | . . . 4 . 3 Mechanic 1 | . . . . . 1 Watcher 1 | . . . . . 1 Swarmer 20 | . 6 . 14 . . Grunt 42 | . 9 . 8 . 25 Brawler 1 | . . . . . 1 Duelist 4 | . . . . . 4 Sentry 18 | . . . 8 . 10 Hunter 1 | . . . 1 . . Programmer 4 | . . . . . 4 Best Kill Streak 11 | . 7 . 9 . 11 Combat Bots Only 7 | . 6 . 5 . 7 Max Kills in Single Turn 7 | . 2 . 4 . 7 Gunslinging 1 | . . . 1 . 1 Exploded 5 | . 1 . 2 . 5 Melee . | . . . . . . Uniques/NPCs Destroyed . | . . . . . . Combat | -11 -10 -10 -8 -7 -7 -------- Run | Yrd Mat Sub Mat Fac Sto Hostile Shots Fired 730 | . 70 . 165 . 495 Missed 204 | . 21 . 32 . 151 Hits 526 | . 49 . 133 . 344 Melee 22 | . . . . . 22 Projectile 504 | . 49 . 133 . 322 Critical Strikes 18 | . . . 3 . 15 Damage Taken 7206 | . 553 . 1618 68 4967 Core 1038 | . 144 . 185 . 709 Absorbed by Shields . | . . . . . . Core Remaining (%) 69 | 100 . 42 66 . . Volleys Fired 266 | . 57 . 86 . 123 Largest 3 | . 2 . 2 . 3 Hottest 202 | . 80 . 112 . 202 Shots Fired 633 | . 104 . 169 . 360 Gun 628 | . 103 . 166 . 359 Cannon . | . . . . . . Launcher 5 | . 1 . 3 . 1 Special . | . . . . . . Kinetic 107 | . 44 . 4 . 59 Thermal 462 | . . . 162 . 300 Explosive 5 | . 1 . 3 . 1 Electromagnetic 59 | . 59 . . . . Robot Hit Streak 36 | . 5 . 36 . 17 Robot Miss Streak 5 | . 2 . 4 . 5 Penetration Max . | . . . . . . Secondary Targets 12 | . 1 . 5 . 6 Max Gunslinging Chain 1 | . 1 . 1 . 1 Shots Hit Robots 428 | . 58 . 124 . 246 Core Hits 266 | . 34 . 66 . 166 Critical Kills 1 | . 1 . . . . Critical Parts Destroyed . | . . . . . . Critical Strikes 44 | . 1 . 15 . 28 Burn 43 | . . . 15 . 28 Destroy 1 | . 1 . . . . Melee Attacks . | . . . . . . Impact . | . . . . . . Slashing . | . . . . . . Piercing . | . . . . . . Sneak Attacks . | . . . . . . Combat Hostiles . | . . . . . . Follow-up Attacks . | . . . . . . Damage Inflicted 9844 | . 801 . 2549 . 6494 Guns 8239 | . 719 . 2130 . 5390 Cannons . | . . . . . . Explosions 1605 | . 82 . 419 . 1104 Melee . | . . . . . . Ramming . | . . . . . . Kinetic 1361 | . 225 . 32 . 1104 Thermal 6466 | . 82 . 2098 . 4286 Explosive 1523 | . . . 419 . 1104 Electromagnetic 494 | . 494 . . . . Impact . | . . . . . . Slashing . | . . . . . . Piercing . | . . . . . . Highest Corruption 1 | . . . . . 1 Average Corruption 1 | . . . . . 1 Corruption Purged . | . . . . . . Corruption Blocked . | . . . . . . Effects 2 | . . . . . 2 Message Errors 1 | . . . . . 1 Matter Fused 1 | . . . . . 1 Overload Shots . | . . . . . . Overflow Damage 67 | . 39 . 8 . 20 Projectiles . | . . . . . . Explosions 67 | . 39 . 8 . 20 Melee . | . . . . . . Knockbacks . | . . . . . . Impact . | . . . . . . Kinetic . | . . . . . . Secondary . | . . . . . . Self-Inflicted Damage 53 | . 53 . . . . Shots 1 | . 1 . . . . Rammed . | . . . . . . Targets Rammed . | . . . . . . Kicked . | . . . . . . Crushed . | . . . . . . Highest Temperature 315 | . 102 . 240 . 315 Average Temperature 68 | . 32 . 42 . 98 Received Heat Transfer 2577 | . 174 . 414 . 1989 Effects 3 | . . . . . 3 Energy Bleed 3 | . . . . . 3 Siege Activations . | . . . . . . Martial Activations . | . . . . . . Shielding Activations . | . . . . . . Robots Disrupted . | . . . . . . Combat Hostiles . | . . . . . . Robots Corrupted . | . . . . . . Combat Hostiles . | . . . . . . Parts Fried 2 | . 2 . . . . Impact Corruptions . | . . . . . . Robots Melted 4 | . . . 1 . 3 Combat Hostiles 4 | . . . 1 . 3 Parts Melted 36 | . . . 10 . 26 Heat Transferred 14925 | . 100 . 5624 . 9201 Parts Sabotaged . | . . . . . . Parts Stolen . | . . . . . . Parts Stripped . | . . . . . . Power Chain Reactions 2 | . 2 . . . . Alert | -11 -10 -10 -8 -7 -7 ------- Run | Yrd Mat Sub Mat Fac Sto Maximum Alert Level 2 | . 1 . 2 1 2 Low Security (%) 53 | 100 99 . 66 72 4 Level 1 17 | . . . 10 27 35 Level 2 29 | . . . 22 . 60 Level 3 . | . . . . . . Level 4 . | . . . . . . Level 5 . | . . . . . . High Security . | . . . . . . Max Security . | . . . . . . Peak Influence 613 | . 203 . 530 228 613 Initial 228 | . . . 31 228 57 Average 254 | . 78 . 209 178 446 Influence Increases 2936 | . 471 . 1023 . 1442 Destroy 0b10 Robot/C 1840 | . 300 . 620 . 920 Destroy 0b10 Robot/NC 115 | . 15 . 55 . 45 Destroy Leader 468 | . 74 . 152 . 242 Allied During Kill 35 | . . . . . 35 Successful Hack 92 | . 5 . 55 . 32 Select Force Hacks 90 | . 60 . 30 . . Disable Machine 75 | . . . 15 . 60 Destroy Structure 71 | . 17 . 21 . 33 Partial Spotted 15 | . . . . . 15 Lose Combat Pursuer 135 | . . . 75 . 60 Influence Decreases 2355 | . 314 96 582 374 989 Entered New Map 451 | . . 76 30 274 71 Time Decay 1484 | . 294 20 502 100 568 Lost Part 380 | . 20 . 50 . 310 Lost Ally 40 | . . . . . 40 Squads Dispatched 23 | . 5 . 3 . 15 Investigation 6 | . 4 . 1 . 1 Extermination 3 | . . . . . 3 Reinforcement 9 | . 1 . 2 . 6 Assault 4 | . . . . . 4 Garrison 1 | . . . . . 1 Intercept . | . . . . . . Searches Triggered . | . . . . . . Construction Impeded 4 | . . . 1 . 3 Haulers Reinforced 1 | . . . . . 1 Active Scanning Responses . | . . . . . . Cargo Convoy Interrupts . | . . . . . . Stealth | -11 -10 -10 -8 -7 -7 --------- Run | Yrd Mat Sub Mat Fac Sto Distress Signals 12 | . 2 . 4 . 6 Communications Jammed . | . . . . . . Distress Signals . | . . . . . . Times Spotted 138 | . 25 . 41 . 72 Peak Tracking Total 9 | . 6 . 6 . 9 Tactical Retreats 6 | . . . 4 . 2 Traps | -11 -10 -10 -8 -7 -7 ------- Run | Yrd Mat Sub Mat Fac Sto Traps Triggered 4 | . 1 . . 1 2 Indirectly . | . . . . . . Trap Hack Attempts . | . . . . . . Triggered . | . . . . . . Disarmed . | . . . . . . Reprogrammed . | . . . . . . Reused . | . . . . . . Traps Extracted . | . . . . . . Installed . | . . . . . . Triggered . | . . . . . . Machines | -11 -10 -10 -8 -7 -7 ---------- Run | Yrd Mat Sub Mat Fac Sto Machines Disabled 5 | . . . 1 . 4 Max in Single Turn 2 | . . . 1 . 2 Machines Repaired . | . . . . . . Machines Dismantled . | . . . . . . Machines Sabotaged . | . . . . . . Overloaded Fab Kills . | . . . . . . Hacking | -11 -10 -10 -8 -7 -7 --------- Run | Yrd Mat Sub Mat Fac Sto Machines Accessed 18 | . 5 . 8 . 5 Terminals 13 | . 3 . 5 . 5 Fabricators . | . . . . . . Repair Stations . | . . . . . . Recycling Units 3 | . 2 . 1 . . Scanalyzers 2 | . . . 2 . . Garrison Access . | . . . . . . Total Hacks 43 | . 12 . 22 . 9 Successful 24 | . 6 . 13 . 5 Failed 19 | . 6 . 9 . 4 Catastrophic 3 | . 1 . 2 . . Database Lockouts . | . . . . . . Manual 25 | . 11 . 12 . 2 Terminals 31 | . 10 . 12 . 9 Fabricators . | . . . . . . Repair Stations . | . . . . . . Recycling Units 3 | . 2 . 1 . . Scanalyzers 9 | . . . 9 . . Garrison Access . | . . . . . . Terminal Hacks 10 | . 3 . 3 . 4 Part Schematic 1 | . . . 1 . . Robot Analysis 2 | . 2 . . . . Open Door 3 | . . . . . 3 Level Access Points 1 | . . . 1 . . Branch Access Points 1 | . . . 1 . . Recycling Unit Index 1 | . 1 . . . . Zone Layout 1 | . . . . . 1 Fabricator Hacks . | . . . . . . Repair Station Hacks . | . . . . . . Recycling Unit Hacks . | . . . . . . Scanalyzer 8 | . . . 8 . . Retrieve Study 8 | . . . 8 . . Garrison Access Hacks . | . . . . . . Unauthorized Hacks 6 | . 3 . 2 . 1 Terminals 3 | . 1 . 1 . 1 Botnet 3 | . 1 . 1 . 1 Fabricators . | . . . . . . Repair Stations . | . . . . . . Recycling Units 3 | . 2 . 1 . . Tunnel 3 | . 2 . 1 . . Scanalyzers . | . . . . . . Garrison Access . | . . . . . . Data Cores Recovered . | . . . . . . Used . | . . . . . . Hacking Detections 11 | . 3 . 5 . 3 Full Trace Events . | . . . . . . Feedback Events . | . . . . . . Feedback Blocked . | . . . . . . Robot Schematics Acquired . | . . . . . . Robots Built . | . . . . . . Authchips . | . . . . . . Time . | . . . . . . Total Robot Build Rating . | . . . . . . Part Schematics Acquired 1 | . . . 1 . . Parts Built . | . . . . . . Authchips . | . . . . . . Time . | . . . . . . Total Part Build Rating . | . . . . . . Part Studies Acquired 8 | . . . 8 . . Parts Repaired . | . . . . . . Time . | . . . . . . Parts Recycled . | . . . . . . Recycled Matter . | . . . . . . Retrieved Matter . | . . . . . . Retrieved Components . | . . . . . . Parts Scanalyzed . | . . . . . . Part Schematics Acquired . | . . . . . . Parts Damaged . | . . . . . . Bothacking | -11 -10 -10 -8 -7 -7 ------------ Run | Yrd Mat Sub Mat Fac Sto Used RIF Installer . | . . . . . . Robots Hacked . | . . . . . . Non-combat . | . . . . . . Combat . | . . . . . . Robot Hacks Applied . | . . . . . . Relay Couplers Released 3 | . . . . . 3 Programmers 3 | . . . . . 3 Fabnet Peak Effective % . | . . . . . . Robots Rewired . | . . . . . . Allies Hacked . | . . . . . . Hacks Repelled . | . . . . . . Allies | -11 -10 -10 -8 -7 -7 -------- Run | Yrd Mat Sub Mat Fac Sto Total Allies 2 | . . . . . 2 Largest Group 2 | . . . . . 2 Highest-Rated Group 62 | . . . . . 62 Highest-Rated Ally 31 | . . . . . 31 Total Orders . | . . . . . . Ally Attacks 19 | . . . . . 19 Total Damage 337 | . . . . . 337 Kills 2 | . . . . . 2 Allies Corrupted . | . . . . . . Allies Melted . | . . . . . . Intel | -11 -10 -10 -8 -7 -7 ------- Run | Yrd Mat Sub Mat Fac Sto Active Infowar (turns) 476 | . . . 239 98 139 Sensors 237 | . . . . 98 139 Structural 239 | . . . 239 . . Robot Analysis Total 2 | . 2 . . . . Derelict Logs Recovered . | . . . . . . Drone Launches . | . . . . . . Drone Recoveries . | . . . . . . Exploration | -11 -10 -10 -8 -7 -7 ------------- Run | Yrd Mat Sub Mat Fac Sto Turns Passed 5138 | 77 1168 55 1909 216 1713 Spaces Moved 2017 | 45 604 35 671 96 566 Core 7 | 7 . . . . . Treads 1781 | 38 604 35 671 96 337 Legs . | . . . . . . Wheels 229 | . . . . . 229 Hover . | . . . . . . Flight . | . . . . . . Fastest Speed 50 | 50 160 160 160 212 125 Average Speed 191 | 145 160 160 217 212 194 Slowest Speed 400 | 160 160 160 240 212 400 Overloaded Moves . | . . . . . . Propulsion Burnouts . | . . . . . . Robots Hopped . | . . . . . . Potential Cave-ins . | . . . . . . Cave-ins Triggered . | . . . . . . Exploration Rate (%) 39 | 3 86 4 60 3 81 Regions Visited 5 Branch Regions 2 Pre-discovered Areas 3 | . 2 . 1 . . Known Exits Taken 2 | . . . 1 1 . Unknown Exits Taken 3 | 1 1 1 . . . Scrap Searched . | . . . . . . Spaces Dug 1 | . . . . . 1 Terrain Destroyed 64 | . 15 . 21 . 28 Melee . | . . . . . . Projectile 9 | . . . . . 9 AOE 55 | . 15 . 21 . 19 Terrain Rammed . | . . . . . . Walls Destroyed . | . . . . . . Machines Disabled . | . . . . . . Actions | -11 -10 -10 -8 -7 -7 --------- Run | Yrd Mat Sub Mat Fac Sto Total 2764 | 53 709 34 956 109 903 Wait 255 | . 26 . 114 . 115 Move 2012 | 44 603 34 670 95 566 Hop . | . . . . . . Pick Up 64 | 2 13 . 25 4 20 Fast Attach 31 | 6 2 . 6 2 15 Attach 39 | . 2 . 12 2 23 Detach 8 | . . . 3 . 5 Swap 42 | 1 4 . 19 2 16 Drop 47 | . 2 . 21 4 20 Fire 266 | . 57 . 86 . 123 Melee . | . . . . . . Ram . | . . . . . . Kick . | . . . . . . Crush . | . . . . . . Escape Stasis . | . . . . . . Rewire . | . . . . . . Trap . | . . . . . . Miscellaneous . | . . . . . . Route ------- -11/Scrapyard -10/Materials (discovered 5 exits: [*Mat x3] / [*Min] / [*Sub]) -10/Subcaves -8/Materials (discovered 3 exits: *Fac x3) -7/Factory -7/Storage (discovered 1 exit: [*Fac]) History --------- Turn | Location | Event 23 | -11/Scrapyard | Discovered new exit (range 16) 78 | -11/Scrapyard | Entered Materials 117 | -10/Materials | Discovered new exit (range 15) 304 | -10/Materials | Build established: Mutant 373 | -10/Materials | Discovered new exit (range 8) 544 | -10/Materials | Discovered new exit (range 9) 778 | -10/Materials | Derelicts attacked the area 870 | -10/Materials | Discovered new exit (range 3) 1025 | -10/Materials | Core integrity fell below 50% 1220 | -10/Materials | Discovered new exit (range 7) 1246 | -10/Materials | Entered Subcaves 1264 | -10/Subcaves | Discovered new exit (range 13) 1301 | -10/Subcaves | Entered Materials 1301 | -8/Materials | Evolved 4 slots: Propulsion x2, Utility x2 1699 | -8/Materials | Lost 3 parts (3n) 1956 | -8/Materials | Discovered new exit (range 12) 2911 | -8/Materials | Build established: Scavenger-Mutant 3122 | -8/Materials | Identified exit to Factory 3210 | -8/Materials | Entered Factory 3210 | -7/Factory | Evolved 2 slots: Utility x1, Weapon x1 3334 | -7/Factory | Discovered new exit (range 15) 3410 | -7/Factory | Identified exit to Storage 3426 | -7/Factory | Entered Storage 3441 | -7/Storage | Met a pair of Derelict thieves 3520 | -7/Storage | Destroyed 7 combat bots 4075 | -7/Storage | Build established: Scavenger-Tank 4226 | -7/Storage | First assault squad dispatched 4313 | -7/Storage | Core integrity fell below 50% 4345 | -7/Storage | Lost 8 parts (1p3n3u1w) 4507 | -7/Storage | Discovered new exit (range 15) 4702 | -7/Storage | Lost 3 parts (2n1u) 5065 | -7/Storage | Core integrity fell below 20% 5083 | -7/Storage | Garrison activated, responded to threat 5093 | -7/Storage | Lost 5 parts (1p2n2u) 5139 | -7/Storage | Destroyed by G-47 Trooper with Particle Gun Last Messages --------------- 05098_ Acquired 84 matter. 05112_ U-05 Engineer builds a Wall. 05120_ G-47 Trooper suffers critical hit (Burn). 05120_ U-05 Engineer builds a Wall. 05121_ U-05 Engineer builds a Door. 05121_ Critical hit (Burn: +37). 05124_ G-47 Trooper heat short circuits Particle Gun. 05126_ U-05 Engineer builds a Wall. 05128_ Wheel+ destroyed. 05129_ Imp. Deuterium Engine destroyed. 05129_ Critical hit (Burn: +37). 05129_ Flak Gun destroyed. 05131_ U-05 Engineer builds a Wall. 05133_ Imp. Light Armor Plating destroyed. 05133_ G-47 Trooper destroyed. 05133_ Switching to secondary target: G-47 Trooper. 05135_ Imp. Heat Sink destroyed. 05135_ Critical hit (Burn: +37). Map ----- +----------------------------------------------------+ | "#??# #?????????????????????##### #% / ! #####" | | "#??#=######????????????????????# # #??# % | | "#??# ######?????????????######## # #??# | | ##??# # ##?????????????# # # #??# | | ??### / T#?????????????# # # #### | | ### ## "##?????????????# # ##########"" | | # ##==##?????????????# + #????????#"T | | " # ##==##?????????##### # #????????#"" | | " # ##==#########??# # # #????????### | | " + #######"""""#??# # ## #??????????# | | # #######""T""#### "####### ##????????## | | ! # ###### # ##????# ########## | | ! # "##""" ! # #?????# | | ! #% "##"Y + #?????# * % | | ### ! "##""" """"" # #?????# | | ??#!* T##### """"" # #?????# ########## ! | | ??#%!%"#???# """"" # #?????#######????????#### | | ??#!=!"#???# # #???????????????????????? | | ??# %!"#???# ] # #???????????????????????? | | ??# !=##???########### #???????????????????????? | | ??#= #??????????????# #???????????????????????? | | ??# #??????????????# #???????????????????????? | | ??# #??????????????# #???????????????????????? | | ??# #?????????????## #??#######??????????????? | | ??# ######?###????## g%#### #??????????????? | | ??# ###########???#;=%=@ g #??????????????? | | ??# # % !%###### g ####g #??????????????? | | #?# # =%+% =% #??? #??????????????? | | #?# # % %%%=#######g#####?""" #??????????????? | | #?# + =%=!## " /g! #?""" / ?????????????? | | #?# # = !#### #??"" # ???????????? | | #?# # % % ##?# """" #?? #? ##??????????? | | #?# # ##?# " =" #???"?#??#???????????? | | #?# # %=##?#?" /[ #????????????????????? | | ### ###########????"=][ #????????????????????? | | ## ###### ##?????" " #????????????????????? | | T #????# ???# """ #????????????????????? | | "" #????#####??# ?? #????????????????????? | | #???????????###??#####????????????????????? | | ## #?????????????????????????????????????????? | | ?#######?????????????????????????????????????????? | | ?????????????????????????????????????????????????? | | ?????????????????????????????????????????????????? | | ?????????????????????????????????????????????????? | | ?????????????????????????????????????????????????? | | | | | | | | | | | +----------------------------------------------------+ Best States ------------- Heat Dissipation 62 Energy Generation 16 Energy Capacity 290 Matter Stores 300 Matter Capacity 300 Sight Range 16 Robot Scan Range 15 Terrain Scan Density 10 Armor Coverage 225 Evasion (%) 40 Targeting Accuracy 5 Recoil Reduction 4 Defensive Hacking 10 Item Schematics ----------------- Cryofiber Web | -8/Materials | Hacked Robot Schematics ------------------ None Fabricated ------------ Nothing Repaired ---------- Nothing Studied --------- Wheel | -8/Materials | Hacked Shotgun | -8/Materials | Hacked Com. Wheel | -8/Materials | Hacked Minigun | -8/Materials | Hacked Deuterium Engine | -8/Materials | Hacked Hvy. Assault Cannon | -8/Materials | Hacked Assault Cannon | -8/Materials | Hacked Lgt. Treads | -8/Materials | Hacked Alien Tech Used ----------------- None Achievements -------------- None Challenges ------------ None Game ------ Seed DroneSeismicFlail Manual? 0 Play Time 00:31:30 Cumulative 378.7 hours Start 2026.09.11 @ 05:39:54 End 2026.09.11 @ 06:14:36 Sessions 1 Manual Loads 0 Difficulty Rogue Special Mode None Game No. 344 Rogue 290 Adventurer 54 Explorer 0 Win Type - Total 21 Types 14/1/1/1/1/0/1/1/0/1 Lore% 83 Gallery% 70 Achievement% 69 Wizard Run 0 Options --------- Layout 1 ASCII 0 Keyboard 0 Movement Mouse Keybinds 1 Fullscreen 2 Font 32/Tamsyn Map View 50x35 Zoom Use 0% Tactical HUD 1 Map Filters NONE Filters NONE Steam 1 RUN: 0317d66b-a9b6-4fb7-8f3d-8054902552ba